bitfinex/quotes_SOLUSD_20260224
["timestamp","ask_amount","ask_price","bid_price","bid_amount"]
[1771944911322,13.80846026,77.26,77.222,12.94967755]
[1771944911625,13.80846026,77.26,77.223,3.96593363]
[1771944911824,13.80846026,77.26,77.22,13.80846026]
[1771944912028,13.80846026,77.24,77.204,12.95269675]
[1771944912326,13.80846026,77.24,77.204,45.33443862]
[1771944912526,12.94682737,77.239,77.204,49.30037225]
[1771944912725,13.80846026,77.25,77.211,3.96593363]
[1771944913525,13.80846026,77.26,77.229,3.96593363]
[1771944914029,4.16486527,77.249,77.21,13.80846026]
[1771944914216,17.97332553,77.24,77.207,3.96593363]
[1771944914419,4.16486527,77.239,77.207,3.96593363]
[1771944914728,13.80846026,77.23,77.198,12.95368526]
[1771944915231,13.80846026,77.21,77.172,3.96593363]
[1771944915439,13.80846026,77.22,77.186,3.96593363]
[1771944915729,13.80846026,77.22,77.18,30.9311002]
[1771944916025,13.80846026,77.22,77.15,3.89383402]
[1771944916026,13.80846026,77.19,77.161,12.95991498]
[1771944916228,13.80846026,77.19,77.155,3.96593363]
[1771944916450,13.80846026,77.17,77.15,0.2]
[1771944916612,13.80846026,77.18,77.15,14.00846026]
[1771944916812,12.95689241,77.179,77.15,0.2]
[1771944917012,13.80846026,77.18,77.15,13.16169325]
[1771944917226,13.80846026,77.18,77.15,26.97015351]
[1771944917726,13.80846026,77.17,77.15,0.2]
[1771944918130,4.16486527,77.179,77.15,0.2]
[1771944918336,4.16486527,77.179,77.151,12.96159479]
[1771944918516,17.97332553,77.17,77.15,0.2]
[1771944918938,12.95857144,77.169,77.15,0.2]
[1771944919124,4.16486527,77.168,77.14,0.2]
[1771944919921,13.80846026,77.16,77.14,0.2]
[1771944920527,12.95857144,77.169,77.14,0.2]
[1771944920915,12.95754875,77.176,77.142,3.96593363]
[1771944921118,13.80846026,77.18,77.144,3.96593363]
[1771944921340,13.80846026,77.18,77.151,3.96593363]
[1771944921738,17.12039313,77.188,77.14,14.00846026]
[1771944921739,17.97332553,77.17,77.14,14.00846026]
[1771944921944,4.16486527,77.169,77.14,0.2]
[1771944922327,13.80846026,77.16,77.14,0.2]
[1771944922743,13.80846026,77.15,77.14,0.2]
[1771944923340,13.80846026,77.15,77.111,32.42062476]
[1771944923341,4.16486527,77.149,77.12,0.2]
[1771944923532,4.16486527,77.129,77.09,13.17175897]
[1771944923838,13.80846026,77.12,77.09,26.98021923]
[1771944924026,13.80846026,77.12,77.09,13.17175897]
[1771944924636,13.80846026,77.12,77.091,12.97168281]
[1771944924840,4.16486527,77.129,77.092,4.14867444]
[1771944925235,13.80846026,77.13,77.1,4.21301559]
[1771944925427,4.05382681,77.129,77.101,12.97000038]
[1771944925623,13.80846026,77.13,77.102,4.21301559]
[1771944925829,13.80846026,77.15,77.11,13.80846026]
[1771944926138,13.80846026,77.14,77.101,45.39500135]
[1771944926342,13.80846026,77.13,77.101,12.97000038]
[1771944926646,4.05382681,77.139,77.101,12.97000038]
[1771944926828,13.80846026,77.13,77.101,12.97000038]
[1771944927436,12.9637792,77.138,77.101,45.39500135]
[1771944927638,13.80846026,77.13,77.101,12.97000038]
[1771944927841,4.05382681,77.137,77.102,4.21301559]
[1771944928040,4.05382681,77.149,77.111,4.21301559]
[1771944928326,4.05382681,77.149,77.11,13.80846026]
[1771944928327,4.05382681,77.139,77.101,12.97000038]
[1771944928527,4.05382681,77.129,77.093,12.97130755]
[1771944928744,4.05382681,77.129,77.051,215.71365563]
[1771944928745,13.80846026,77.1,77.068,4.21301559]
[1771944928922,13.80846026,77.1,77.071,4.21301559]
[1771944929123,4.05382681,77.109,77.081,4.21301559]
[1771944929537,13.80846026,77.13,77.091,4.21301559]
[1771944929741,12.96586881,77.126,77.091,4.21301559]
[1771944930450,13.80846026,77.12,77.083,4.21301559]
[1771944931150,12.96586881,77.126,77.091,4.21301559]
[1771944931347,12.96398333,77.137,77.101,4.21301559]
[1771944931535,13.80846026,77.12,77.086,4.21301559]
[1771944931738,13.80846026,77.11,77.076,4.21301559]
[1771944932137,13.80846026,77.09,77.06,13.80846026]
[1771944932537,13.80846026,77.11,77.071,4.21301559]
[1771944933135,4.05382681,77.113,77.071,4.21301559]
[1771944933340,13.80846026,77.1,77.071,4.21301559]
[1771944933539,13.80846026,77.1,77.07,13.80846026]
[1771944933540,12.96865476,77.109,77.073,4.21301559]
[1771944933751,13.80846026,77.1,77.073,4.21301559]
[1771944933951,45.39029166,77.109,77.073,4.21301559]
[1771944934653,13.80846026,77.1,77.073,4.21301559]
[1771944935056,13.80846026,77.09,77.062,12.97648653]
[1771944935354,13.80846026,77.09,77.061,4.21301559]
[1771944935557,12.97201935,77.089,77.062,4.21301559]
[1771944935747,12.97201935,77.089,77.039,4.21301559]
[1771944935748,13.80846026,77.07,77.039,4.21301559]
[1771944936561,13.80846026,77.07,77.04,13.80846026]
[1771944936753,13.80846026,77.08,77.041,4.21301559]
[1771944936955,13.80846026,77.07,77.041,4.21301559]
[1771944937347,13.80846026,77.08,77.041,4.21301559]
[1771944937543,12.9737023,77.079,77.042,12.97993302]
[1771944937858,13.80846026,77.07,77.042,12.97993302]
[1771944938058,13.80846026,77.06,77.02,13.80846026]
[1771944938272,45.40795806,77.079,77.041,4.21301559]
[1771944938442,13.80846026,77.07,77.041,4.21301559]
[1771944938641,45.40795806,77.079,77.041,4.21301559]
[1771944938839,4.05382681,77.069,77.03,4.21301559]
[1771944939142,4.05382681,77.069,77.031,4.21301559]
[1771944939344,13.80846026,77.06,77.031,4.21301559]
[1771944939761,12.97555405,77.068,77.033,4.21301559]
[1771944940654,45.41443919,77.068,77.033,4.21301559]
[1771944940864,12.97555405,77.068,77.033,4.21301559]
[1771944941350,4.05382681,77.059,77.012,0.239917]
[1771944941545,4.05382681,77.044,77.012,13.22489301]
[1771944941737,45.42563823,77.049,77.013,4.21301559]
[1771944941938,13.80846026,77.04,77.012,0.239917]
[1771944942161,12.97875378,77.049,77.012,4.45293259]
[1771944942363,12.97875378,77.049,77.014,4.21301559]
[1771944942566,0.2,77.049,77.021,4.21301559]
[1771944942865,0.2,77.049,77.03,13.80846026]
[1771944943171,0.2,77.059,77.033,4.21301559]
[1771944943660,0.2,77.059,77.041,4.21301559]
[1771944943871,13.80846026,77.09,77.051,4.21301559]
[1771944944468,103.703117,77.144,77.071,4.21301559]
[1771944944469,13.80846026,77.11,77.071,4.21301559]
[1771944944646,13.80846026,77.09,77.061,4.21301559]
[1771944944968,4.05382681,77.099,77.061,4.21301559]
[1771944945149,4.05382681,77.099,77.06,13.80846026]
[1771944945150,17.86228707,77.11,77.071,4.21301559]
[1771944945348,13.80846026,77.11,77.081,4.21301559]
[1771944945549,4.05382681,77.089,77.036,4.21301559]
[1771944945752,4.05382681,77.089,77.041,4.21301559]
[1771944945941,4.05382681,77.089,77.04,13.80846026]
[1771944945942,17.86228707,77.08,77.043,4.21301559]
[1771944946150,13.80846026,77.07,77.03,13.80846026]
[1771944946348,45.40265669,77.088,76.976,51.9636863]
[1771944946349,17.86228707,77.05,77.017,4.21301559]
[1771944946567,13.80846026,77.04,77.005,4.21301559]
[1771944946744,3.69383402,77.064,76.995,4.21301559]
[1771944946745,13.80846026,77.03,76.995,4.21301559]
[1771944947065,13.80846026,77.03,76.99,13.80846026]
[1771944947066,13.80846026,77.03,77.0,4.21301559]
[1771944947268,13.80846026,77.03,76.99,13.80846026]
[1771944947452,13.80846026,77.02,76.99,4.21301559]
[1771944947660,4.05382681,77.029,76.99,18.02147585]
[1771944947859,12.98212361,77.029,76.993,4.21301559]
[1771944948059,13.80846026,77.02,76.985,12.98949947]
[1771944948260,4.05382681,77.065,77.011,4.21301559]
[1771944948569,17.86228707,77.06,77.021,4.21301559]
[1771944948773,4.05382681,77.059,77.021,4.21301559]
[1771944949151,4.05382681,77.059,77.02,13.80846026]
[1771944949466,17.86228707,77.07,77.031,4.21301559]
[1771944949762,4.05382681,77.069,77.031,4.21301559]
[1771944949970,12.97555405,77.068,77.04,13.80846026]
[1771944950172,12.9737023,77.079,77.05,13.80846026]
[1771944950562,12.9737023,77.079,77.041,4.21301559]
[1771944951268,12.9737023,77.079,77.051,4.21301559]
[1771944951681,12.9737023,77.079,77.03,13.80846026]
[1771944951682,13.80846026,77.07,77.03,13.80846026]
[1771944951978,45.40795806,77.079,77.04,13.80846026]
[1771944952471,45.40795806,77.079,77.028,32.45536377]
[1771944952472,12.9737023,77.079,77.05,13.80846026]
[1771944952675,12.9737023,77.079,77.051,4.21301559]
[1771944953050,13.80846026,77.06,77.014,4.21301559]
[1771944953254,3.69383402,77.076,77.014,4.21301559]
[1771944953255,13.80846026,77.05,77.014,4.21301559]
[1771944954268,13.80846026,77.05,77.01,13.80846026]
[1771944954452,45.42563823,77.049,77.01,13.80846026]
[1771944954653,45.42563823,77.049,77.011,12.98515796]
[1771944954871,45.42563823,77.049,77.01,13.80846026]
[1771944955058,45.42563823,77.049,77.01,26.79371687]
[1771944955574,45.42563823,77.049,77.005,4.20901319]
[1771944955781,12.97875378,77.049,77.02,13.80846026]
[1771944956156,12.97875378,77.049,77.011,4.20901319]
[1771944956365,4.13326327,77.039,77.004,12.98623739]
[1771944956674,4.13326327,77.037,77.0,13.80846026]
[1771944956875,13.80846026,77.02,76.986,12.98937469]
[1771944957060,4.13326327,77.029,76.986,12.98937469]
[1771944957258,4.13326327,77.034,76.991,4.20901319]
[1771944957458,13.80846026,77.04,77.001,4.20901319]
[1771944957658,12.98043847,77.039,77.01,13.80846026]
[1771944958271,12.97875378,77.049,77.011,4.20901319]
[1771944958477,12.97706951,77.059,77.022,12.98330347]
[1771944958781,12.97706951,77.059,77.03,13.80846026]
[1771944959373,12.97706951,77.059,77.023,4.20901319]
[1771944959988,4.13326327,77.058,77.012,4.20901319]
[1771944960165,17.94172353,77.05,77.012,4.20901319]
[1771944960360,4.13326327,77.049,77.001,4.20901319]
[1771944960664,12.98060697,77.038,77.003,4.20901319]
[1771944961067,3.69383402,77.056,77.021,4.20901319]
[1771944961281,12.97706951,77.059,77.021,4.20901319]
[1771944961492,4.13326327,77.075,77.031,4.20901319]
[1771944961682,13.80846026,77.07,77.031,4.20901319]
[1771944961883,12.97475822,77.073,77.04,13.80846026]
[1771944962085,13.80846026,77.08,77.041,4.20901319]
[1771944962385,49.52355493,77.109,77.07,13.80846026]
[1771944962567,4.13326327,77.089,77.05,13.80846026]
[1771944962887,4.13326327,77.079,77.044,12.97959249]
[1771944963384,13.80846026,77.07,77.037,4.20901319]
[1771944963581,3.69383402,77.077,77.04,13.80846026]
[1771944963771,3.69383402,77.087,77.05,13.80846026]
[1771944963974,13.80846026,77.08,77.041,4.20901319]
[1771944964992,12.97269248,77.085,77.05,13.80846026]
[1771944965387,4.13326327,77.069,77.03,18.01747345]
[1771944965689,4.13326327,77.069,77.031,4.20901319]
[1771944966087,4.13326327,77.069,77.021,4.20901319]
[1771944966274,3.69383402,77.077,77.041,4.20901319]
[1771944966590,13.80846026,77.07,77.041,4.20901319]
[1771944966765,45.41031462,77.075,77.041,4.20901319]
[1771944966965,45.41031462,77.075,77.005,168.82020646]
[1771944966966,4.13326327,77.049,77.0,4.20901319]
[1771944967171,97.30781705,77.075,77.002,4.20901319]
[1771944967172,4.13326327,77.039,77.002,4.20901319]
[1771944967793,4.13326327,77.029,76.992,4.20901319]
[1771944967985,3.69383402,77.053,77.011,4.20901319]
[1771944967986,3.69383402,77.047,77.011,4.20901319]
[1771944968167,13.80846026,77.04,77.011,4.20901319]
[1771944968881,13.80846026,77.06,77.021,4.20901319]
[1771944969073,12.97706951,77.059,77.021,4.20901319]
[1771944969273,13.80846026,77.05,77.012,12.98498935]
[1771944969480,13.80846026,77.05,77.013,4.20901319]
[1771944969992,13.80846026,77.06,77.021,4.20901319]
[1771944970187,13.80846026,77.07,77.031,4.20901319]
[1771944970995,12.97538569,77.069,77.033,4.20901319]
[1771944971198,4.13326327,77.083,77.05,13.80846026]
[1771944971383,13.87165695,77.08,77.05,13.87165695]
[1771944971695,4.13326327,77.11,77.06,13.87165695]
[1771944971999,13.87165695,77.1,77.061,4.20901319]
[1771944972186,18.00492022,77.1,77.061,4.20901319]
[1771944972581,4.13326327,77.079,77.033,4.20901319]
[1771944972781,4.13326327,77.079,77.04,13.87165695]
[1771944972989,13.87165695,77.07,77.04,13.87165695]
[1771944973189,13.87165695,77.07,77.033,17.1904183]
[1771944973391,18.00492022,77.07,77.033,4.20901319]
[1771944973596,4.13326327,77.069,77.033,4.20901319]
[1771944973793,4.13326327,77.077,77.04,13.87165695]
[1771944974098,13.87165695,77.07,77.04,13.87165695]
[1771944974890,4.13326327,77.077,77.04,18.08067014]
[1771944975085,12.97420727,77.076,77.043,4.20901319]
[1771944975281,45.40972545,77.076,77.043,4.20901319]
[1771944975484,45.40972545,77.076,77.05,18.08067014]
[1771944975485,12.97420727,77.076,77.05,18.08067014]
[1771944976395,13.87165695,77.07,77.04,18.08067014]
[1771944976602,13.87165695,77.07,77.041,4.20901319]
[1771944976790,17.10747054,77.076,77.041,4.20901319]
[1771944976986,17.10747054,77.076,76.998,103.89818409]
[1771944976987,4.13326327,77.069,77.031,17.19071364]
[1771944977179,12.97555405,77.068,77.04,13.87165695]
[1771944977382,4.13326327,77.089,77.05,13.87165695]
[1771944977683,13.87165695,77.08,77.051,4.20901319]
[1771944977898,13.87165695,77.09,77.051,4.20901319]
[1771944978496,12.97201935,77.089,77.052,17.18726164]
[1771944978688,12.97201935,77.089,77.053,4.20901319]
[1771944978890,4.13326327,77.088,77.053,4.20901319]
[1771944979310,13.87165695,77.08,77.05,26.85015815]
[1771944979498,18.00492022,77.08,77.05,26.85015815]
[1771944979885,18.00492022,77.08,77.05,12.9785012]
[1771944980090,45.40206773,77.089,77.051,4.20901319]
[1771944980277,18.00492022,77.08,77.046,12.97922842]
[1771944980484,12.97387062,77.078,77.051,4.20901319]
[1771944980708,12.97218762,77.088,77.06,13.87165695]
[1771944980899,45.40265669,77.088,77.051,4.20901319]
[1771944981109,4.13326327,77.079,77.041,4.20901319]
[1771944981282,13.87165695,77.06,77.02,18.08067014]
[1771944981592,4.13326327,77.059,77.02,18.08067014]
[1771944982007,4.13326327,77.059,77.021,4.20901319]
[1771944982584,12.97387062,77.078,77.041,4.20901319]
[1771944982785,13.87165695,77.09,77.06,13.87165695]
[1771944983085,13.87165695,77.09,77.06,4.20901319]
[1771944983287,13.87165695,77.08,77.049,4.20901319]
[1771944983489,4.13326327,77.082,77.05,13.87165695]
[1771944983693,13.87165695,77.08,77.049,4.20901319]
[1771944984689,12.9737023,77.079,77.049,17.18772499]
[1771944984884,12.9737023,77.079,77.05,13.87165695]
[1771944985086,12.9737023,77.079,77.049,12.9787118]
[1771944985995,12.9737023,77.079,77.049,4.2008581]
[1771944986202,4.39519581,77.078,77.042,4.2008581]
[1771944986391,12.9737023,77.079,77.042,4.2008581]
[1771944986586,12.9737023,77.079,77.05,13.87165695]
[1771944986792,12.9737023,77.079,77.042,4.2008581]
[1771944986999,12.9737023,77.079,77.051,4.2008581]
[1771944987308,12.97201935,77.089,77.06,13.87165695]
[1771944987688,12.97201935,77.089,77.06,18.07251505]
[1771944988303,4.39519581,77.088,77.051,4.2008581]
[1771944988602,4.39519581,77.079,77.041,4.2008581]
[1771944989113,13.87165695,77.07,77.041,4.2008581]
[1771944989301,4.39519581,77.079,77.041,4.2008581]
[1771944989494,12.97387062,77.078,77.044,12.97945461]
[1771944989692,12.97387062,77.078,77.045,4.2008581]
[1771944990110,12.97387062,77.078,77.044,12.97945461]
[1771944990111,12.97336505,77.082,77.051,4.2008581]
[1771944990513,4.39519581,77.1,77.06,13.87165695]
[1771944990721,3.69383402,77.107,77.071,4.2008581]
[1771944991011,13.87165695,77.1,77.071,4.2008581]
[1771944991524,4.39519581,77.109,77.071,4.2008581]
[1771944991713,51.83607403,77.167,77.042,97.34949766]
[1771944991714,4.39519581,77.079,77.042,4.2008581]
[1771944991914,13.87165695,77.07,77.042,4.2008581]
[1771944992109,13.87165695,77.07,77.007,51.94305726]
[1771944992110,13.87165695,77.07,77.039,12.98035797]
[1771944992307,4.39519581,77.069,77.033,12.9814495]
[1771944992508,4.39519581,77.069,77.034,4.2008581]
[1771944993297,13.87165695,77.06,77.024,4.2008581]
[1771944993495,4.39519581,77.069,77.031,4.2008581]
[1771944993694,18.26685276,77.06,77.031,4.2008581]
[1771944994210,4.39519581,77.059,77.022,4.2008581]
[1771944994589,13.87165695,77.05,77.022,4.2008581]
[1771944995499,13.87165695,77.05,77.015,12.9844625]
[1771944995701,36.13314007,77.067,77.031,4.2008581]
[1771944995915,13.87165695,77.06,77.031,4.2008581]
[1771944996319,13.87165695,77.05,77.031,4.2008581]
[1771944996522,13.87165695,77.06,77.031,4.2008581]
[1771944999422,13.87165695,77.05,77.023,4.2008581]
[1771944999827,12.97706951,77.059,77.023,4.2008581]
[1771945000619,13.87165695,77.05,77.023,4.2008581]
[1771945001405,13.87165695,77.06,77.031,4.2008581]
[1771945002119,13.87165695,77.05,77.031,4.2008581]
[1771945002926,13.87165695,77.06,77.031,4.2008581]
[1771945003127,13.87165695,77.05,77.031,4.2008581]
[1771945003326,3.69383402,77.073,77.032,32.45404507]
[1771945003626,13.87165695,77.07,77.041,4.2008581]
[1771945003813,13.87165695,77.08,77.041,4.2008581]
[1771945004015,13.87165695,77.09,77.051,4.2008581]
[1771945004212,13.87165695,77.08,77.051,4.2008581]
[1771945004827,4.39519581,77.069,77.032,12.98161802]
[1771945005034,13.87165695,77.06,77.032,12.98161802]
[1771945005215,18.26685276,77.06,77.032,12.98161802]
[1771945005823,12.97593224,77.066,77.032,12.98161802]
[1771945006221,3.69383402,77.087,77.05,13.87165695]
[1771945006423,13.87165695,77.08,77.04,13.87165695]
[1771945006629,13.87165695,77.08,77.05,13.87165695]
[1771945006827,4.39519581,77.079,77.051,4.2008581]
[1771945007134,4.39519581,77.079,77.041,4.2008581]
[1771945007633,4.39519581,77.079,77.043,4.2008581]
[1771945007634,12.97387062,77.078,77.043,4.2008581]
[1771945007933,17.36906643,77.078,77.043,4.2008581]
[1771945008314,4.39519581,77.077,77.043,4.2008581]
[1771945009108,12.97387062,77.078,77.05,18.07251505]
[1771945009328,12.97387062,77.078,77.05,4.2008581]
[1771945009718,12.97387062,77.078,77.052,4.2008581]
[1771945010524,13.87165695,77.07,77.047,12.97899425]
[1771945010730,13.87165695,77.07,77.044,4.2008581]
[1771945010910,18.26685276,77.06,77.027,12.98246069]
[1771945011115,18.26685276,77.06,77.028,4.2008581]
[1771945011325,4.39519581,77.06,77.03,13.87165695]
[1771945011638,13.87165695,77.06,77.031,4.2008581]
[1771945011839,111.51101294,77.268,77.0,18.07251505]
[1771945011840,4.39519581,77.039,77.0,18.07251505]
[1771945012129,4.39519581,77.039,77.001,4.2008581]
[1771945012829,13.87165695,77.03,77.001,4.2008581]
[1771945013012,4.39519581,77.029,77.001,4.2008581]
[1771945013412,4.39519581,77.039,77.001,4.2008581]
[1771945013643,4.39519581,77.039,77.01,13.87165695]
[1771945013814,12.98060697,77.038,77.011,4.2008581]
[1771945014434,13.87165695,77.03,77.003,12.98650701]
[1771945014724,13.87165695,77.03,77.003,17.18736511]
[1771945014932,4.39519581,77.037,77.004,4.2008581]
[1771945016030,4.18614278,77.029,76.997,12.98751899]
[1771945016335,13.87165695,77.04,77.001,4.05028405]
[1771945016530,13.87165695,77.03,77.001,4.05028405]
[1771945017239,13.87165695,77.04,77.001,4.05028405]
[1771945017534,12.97909068,77.047,77.011,4.05028405]
[1771945018032,12.97909068,77.047,77.013,4.05028405]
[1771945018430,4.18614278,77.049,77.013,4.05028405]
[1771945018635,4.18614278,77.049,77.021,4.05028405]
[1771945019639,13.87165695,77.03,77.002,4.05028405]
[1771945020223,12.98212361,77.029,77.003,12.98650701]
[1771945020429,4.18614278,77.019,76.991,4.05028405]
[1771945020723,3.69383402,77.037,77.001,4.05028405]
[1771945021139,13.87165695,77.04,77.011,4.05028405]
[1771945021640,13.87165695,77.04,76.981,97.42663773]
[1771945021641,13.87165695,77.03,77.001,4.05028405]
[1771945022221,4.18614278,77.027,76.992,4.05028405]
[1771945022420,4.18614278,77.019,76.982,4.05028405]
[1771945022617,13.87165695,77.02,76.991,4.05028405]
[1771945022839,13.87165695,77.03,77.001,4.05028405]
[1771945023426,12.9812192,77.035,77.001,4.05028405]
[1771945023621,13.87165695,77.04,77.001,4.05028405]
[1771945023840,13.87165695,77.04,77.011,4.05028405]
[1771945024143,4.18614278,77.029,76.992,4.05028405]
[1771945024546,4.18614278,77.029,77.001,4.05028405]
[1771945024843,12.98104873,77.036,77.001,4.05028405]
[1771945025530,4.18614278,77.029,76.993,45.45867805]
[1771945025739,12.98104873,77.036,77.001,4.05028405]
[1771945026033,13.87165695,77.04,77.011,4.05028405]
[1771945026425,12.97931349,77.046,77.011,4.05028405]
[1771945026625,12.97931349,77.046,76.981,162.37745464]
[1771945026626,64.85548314,77.095,77.03,13.87165695]
[1771945026832,13.87165695,77.07,77.031,4.05028405]
[1771945027031,3.69383402,77.067,77.031,4.05028405]
[1771945027226,13.87165695,77.09,77.05,13.87165695]
[1771945027550,51.85350367,77.141,77.081,4.05028405]
[1771945027551,13.87165695,77.12,77.081,4.05028405]
[1771945027743,13.87165695,77.1,77.065,4.05028405]
[1771945027928,4.18614278,77.099,77.06,13.87165695]
[1771945028128,4.18614278,77.099,77.07,13.87165695]
[1771945028527,18.05779973,77.09,77.061,4.05028405]
[1771945028728,17.15816213,77.089,77.06,13.87165695]
[1771945029347,17.15816213,77.089,77.06,17.921941]
[1771945029526,12.97201935,77.089,77.062,12.97656432]
[1771945030145,12.9706733,77.097,77.063,4.05028405]
[1771945030527,4.18614278,77.096,77.063,4.05028405]
[1771945030730,4.18614278,77.089,77.05,13.87165695]
[1771945031251,4.18614278,77.089,77.06,13.87165695]
[1771945031443,4.18614278,77.089,77.06,17.921941]
[1771945032352,4.18614278,77.079,77.041,4.05028405]
[1771945032564,3.69383402,77.085,77.02,4.05028405]
[1771945032565,4.18614278,77.069,77.02,4.05028405]
[1771945032730,4.18614278,77.049,77.01,17.921941]
[1771945032978,13.87165695,77.03,77.003,17.03671576]
[1771945033192,4.18614278,77.039,77.003,17.03671576]
[1771945033496,4.18614278,77.039,76.98,0.2]
[1771945033497,3.69383402,77.047,77.011,4.05028405]
[1771945033789,4.18614278,77.049,77.011,4.05028405]
[1771945034476,4.18614278,77.039,77.001,4.05028405]
[1771945034675,13.88963472,77.04,77.011,4.05028405]
[1771945034977,4.18614278,77.029,76.997,12.98747728]
[1771945035180,4.18614278,77.029,76.992,12.98826866]
[1771945035673,4.18614278,77.029,76.992,17.03855271]
[1771945035674,13.88963472,77.02,76.992,17.03855271]
[1771945035979,45.4262278,77.048,77.011,4.05028405]
[1771945036181,4.18614278,77.049,77.011,4.05028405]
[1771945036371,13.88963472,77.06,77.03,17.93991877]
[1771945036781,17.16294969,77.061,77.031,12.98178655]
[1771945036979,13.88963472,77.06,77.031,12.98178655]
[1771945037195,12.97541659,77.069,77.031,12.98178655]
[1771945037377,12.97541659,77.069,77.041,4.05028405]
[1771945037582,4.18614278,77.079,77.041,4.05028405]
[1771945037900,4.18614278,77.069,77.031,49.48653698]
[1771945038406,4.18614278,77.069,77.04,13.88963472]
[1771945038796,12.97555405,77.068,77.041,12.9801015]
[1771945038983,12.97555405,77.068,77.036,17.03117855]
[1771945039188,12.97555405,77.068,77.04,13.88963472]
[1771945039603,12.97555405,77.068,77.036,17.03117855]
[1771945039994,4.18614278,77.059,77.015,4.05028405]
[1771945040179,4.18614278,77.049,77.015,4.05028405]
[1771945040385,4.18614278,77.039,77.005,12.98616972]
[1771945040902,12.98060697,77.038,77.005,12.98616972]
[1771945041287,12.97875378,77.049,77.011,4.05028405]
[1771945041489,18.0757775,77.05,77.011,4.05028405]
[1771945041686,3.69383402,77.057,77.021,4.05028405]
[1771945042298,13.88963472,77.05,77.021,4.05028405]
[1771945042493,4.18614278,77.049,77.011,4.05028405]
[1771945042695,3.69383402,77.057,77.021,4.05028405]
[1771945042902,51.87151764,77.114,77.021,4.05028405]
[1771945042903,13.88963472,77.09,77.05,13.88963472]
[1771945043206,13.88963472,77.09,77.042,45.42976557]
[1771945043397,18.0757775,77.08,77.042,45.42976557]
[1771945043602,18.0757775,77.08,77.043,4.05028405]
[1771945043794,18.0757775,77.08,77.05,13.88963472]
[1771945044106,18.0757775,77.08,77.043,4.05028405]
[1771945044894,4.227896,77.09,77.051,4.24519676]
[1771945045102,12.97201995,77.089,77.051,4.24519676]
[1771945045408,18.11753072,77.09,77.061,4.24519676]
[1771945045409,13.88963472,77.09,77.061,4.24519676]
[1771945046413,13.88963472,77.09,77.044,45.42858625]
[1771945046414,4.21779487,77.107,77.07,4.24519676]
[1771945046594,12.96834776,77.111,77.08,18.13483148]
[1771945046910,12.9676827,77.115,77.081,12.97336568]
[1771945047108,4.21779487,77.109,77.07,13.88963472]
[1771945047409,45.386797,77.115,77.045,12.9794276]
[1771945047410,13.88963472,77.08,77.045,12.9794276]
[1771945047590,13.88963472,77.08,77.046,4.24519676]
[1771945047791,4.21779487,77.089,77.051,4.24519676]
[1771945048192,13.88963472,77.08,77.051,4.24519676]
[1771945048396,4.21779487,77.089,77.051,4.24519676]
[1771945049402,3.69383402,77.097,77.061,4.24519676]
[1771945049686,13.88963472,77.09,77.061,4.24519676]
[1771945049908,4.21779487,77.099,77.061,4.24519676]
[1771945050111,3.69383402,77.095,77.061,4.24519676]
[1771945050293,13.88963472,77.08,77.052,12.97824845]
[1771945050493,4.21779487,77.079,77.048,12.97883004]
[1771945050794,3.69383402,77.093,77.015,206.842321]
[1771945050795,4.21779487,77.069,77.031,12.98178655]
[1771945051116,4.21779487,77.069,77.031,17.22698331]
[1771945051295,4.21779487,77.069,77.032,4.24519676]
[1771945052230,4.21779487,77.049,77.014,4.24519676]
[1771945052414,18.10742959,77.04,77.004,4.24519676]
[1771945052602,4.21779487,77.039,77.004,4.24519676]
[1771945053194,4.21779487,77.039,77.0,13.88963472]
[1771945053519,3.69383402,77.053,76.981,45.46576427]
[1771945053520,4.21779487,77.019,76.982,4.24519676]
[1771945053898,13.88963472,77.01,76.982,4.24519676]
[1771945054124,13.88963472,77.01,76.983,12.98988088]
[1771945054418,4.21779487,76.999,76.98,0.2]
[1771945054604,12.9854325,77.01,76.98,0.2]
[1771945054605,4.21779487,77.009,76.98,0.2]
[1771945054919,13.88963472,77.0,76.98,0.2]
[1771945055225,4.21779487,76.989,76.957,12.99421261]
[1771945055597,4.21779487,77.006,76.97,13.88963472]
[1771945055810,13.88963472,77.0,76.961,4.24519676]
[1771945056215,3.69383402,77.007,76.943,4.24519676]
[1771945056216,13.88963472,76.98,76.943,4.24519676]
[1771945056795,4.21779487,76.979,76.943,4.24519676]
[1771945057098,4.21779487,76.969,76.934,12.99815426]
[1771945057302,4.21779487,76.969,76.93,14.08963472]
[1771945057303,13.88963472,76.95,76.93,0.2]
[1771945057527,3.69383402,76.983,76.93,0.2]
[1771945057528,4.21779487,76.976,76.93,0.2]
[1771945057724,13.88963472,76.97,76.931,4.24519676]
[1771945057900,4.21779487,76.976,76.941,4.24519676]
[1771945058104,3.69383402,76.975,76.943,4.24519676]
[1771945058532,32.4719009,76.99,76.943,4.24519676]
[1771945058533,4.21779487,76.996,76.943,4.24519676]
[1771945058700,4.21779487,76.996,76.942,12.99680278]
[1771945058701,13.88963472,77.0,76.961,4.24519676]
[1771945058896,4.21779487,77.009,76.971,4.24519676]
[1771945059718,13.88963472,77.01,76.971,4.24519676]
[1771945060098,4.21779487,76.999,76.96,13.88963472]
[1771945060299,4.21779487,76.989,76.955,12.99457726]